[Event "Open Mancomunitat de la Ribera Alta (Sumacàrcer)"]
[Site "Sumacàrcer, Spain"]
[Date "2018.11.18"]
[Round "4.7"]
[White "Galvan, Jesus"]
[Black "Rosello Huet, Miguel Angel"]
[Result "1-0"]
[TimeControl "5m+3s"]
[WhiteElo "2254"]
[BlackElo "1863"]

1. c4 {[%clk 00:05:05]} e6 {[%clk 00:05:04]} 2. Nf3 {[%clk 00:05:00]} {[%emt
00:00:09]} d5 {[%clk 00:05:06]} 3. b3 {[%clk 00:05:03]} {[%emt 00:00:09]} Nf6 4.
g3 c6 {[%clk 00:05:07]} 5. Bg2 {[%clk 00:05:07]} Be7 {[%clk 00:05:06]} 6. O-O
{[%clk 00:05:08]} {[%emt 00:00:05]} O-O {[%clk 00:05:08]} 7. Bb2 {[%clk
00:05:10]} b6 {[%clk 00:05:02]} {[%emt 00:00:11]} 8. d3 {[%clk 00:05:12]} Bb7
{[%clk 00:05:04]} {[%emt 00:00:09]} 9. Nbd2 {[%clk 00:05:14]} Na6 {[%clk
00:04:53]} {[%emt 00:00:06]} 10. e4 {[%clk 00:05:08]} {[%emt 00:00:07]} dxe4
{[%clk 00:04:34]} {[%emt 00:00:22]} 11. dxe4 {[%clk 00:05:11]} Nc5 {[%clk
00:04:17]} {[%emt 00:00:21]} 12. Qe2 {[%clk 00:05:11]} {[%emt 00:00:07]} Qd3
{[%clk 00:04:02]} {[%emt 00:00:14]} 13. Qxd3 {[%clk 00:05:13]} Nxd3 {[%clk
00:04:04]} {[%emt 00:00:05]} 14. Bc3 {[%clk 00:05:15]} Rad8 {[%clk 00:03:29]}
{[%emt 00:00:36]} 15. Rfd1 {[%clk 00:05:06]} {[%emt 00:00:12]} Bc5 {[%clk
00:03:20]} {[%emt 00:00:12]} 16. Rf1 {[%clk 00:04:59]} {[%emt 00:00:10]} Ng4
{[%clk 00:03:04]} {[%emt 00:00:18]} 17. h3 {[%clk 00:04:16]} {[%emt 00:00:46]}
Ngxf2 {[%clk 00:02:59]} {[%emt 00:00:09]} 18. Kh2 {[%clk 00:04:03]} {[%emt
00:00:16]} Rd7 {[%clk 00:01:57]} {[%emt 00:01:07]} 19. b4 {[%clk 00:02:48]}
{[%emt 00:01:16]} Be3 {[%clk 00:01:58]} 20. Nb3 {[%clk 00:02:50]} Nxe4 {[%clk
00:01:48]} {[%emt 00:00:16]} 21. Ne5 {[%clk 00:02:49]} {[%emt 00:00:15]} Nxe5
{[%clk 00:01:38]} {[%emt 00:00:05]} 22. Bxe5 {[%clk 00:02:51]} Nd2 {[%clk
00:01:31]} {[%emt 00:00:10]} 23. Rfd1 {[%clk 00:01:40]} {[%emt 00:01:12]} Rfd8
{[%clk 00:01:26]} {[%emt 00:00:08]} 24. c5 {[%clk 00:00:53]} {[%emt 00:00:55]}
Nxb3 {[%clk 00:01:22]} {[%emt 00:00:05]} 25. Rxd7 {[%clk 00:00:55]} Rxd7 {[%clk
00:01:22]} {[%emt 00:00:04]} 26. axb3 {[%clk 00:00:57]} {[%emt 00:00:05]} Bc8
{[%clk 00:01:01]} {[%emt 00:00:18]} 27. Bd6 {[%clk 00:00:56]} {[%emt 00:00:04]}
bxc5 28. bxc5 {[%clk 00:00:58]} Rb7 {[%clk 00:00:51]} {[%emt 00:00:11]} 29.
Bxc6 {[%clk 00:00:48]} {[%emt 00:00:10]} Rxb3 {[%clk 00:00:42]} {[%emt
00:00:13]} 30. Rxa7 {[%clk 00:00:49]} Rb2+ {[%clk 00:00:27]} {[%emt 00:00:19]}
31. Kh1 {[%clk 00:00:49]} {[%emt 00:00:06]} Rb1+ {[%clk 00:00:28]} 32. Kg2
{[%clk 00:00:51]} {[%emt 00:00:05]} f5 {[%clk 00:00:10]} {[%emt 00:00:16]} 33.
Ra8 {[%clk 00:00:52]} {[%emt 00:00:06]} Kf7 {[%clk 00:00:11]} 34. Rxc8 {[%clk
00:00:54]} {[%emt 00:00:05]} Rc1 {[%clk 00:00:09]} 35. Ba4 {[%clk 00:00:42]}
{[%emt 00:00:15]} Kf6 {[%clk 00:00:10]} 36. c6 {[%clk 00:00:44]} {[%emt
00:00:05]} Bb6 {[%clk 00:00:11]} 37. Rb8 {[%clk 00:00:33]} {[%emt 00:00:14]}
Ba5 {[%clk 00:00:11]} {[%emt 00:00:05]} 38. Ra8 {[%clk 00:00:33]} {[%emt
00:00:11]} Bb6 {[%clk 00:00:13]} 39. Rb8 {[%clk 00:00:35]} Ba5 {[%clk
00:00:15]} 40. h4 {[%clk 00:00:27]} {[%emt 00:00:10]} e5 {[%clk 00:00:17]} 41.
Re8 {[%clk 00:00:24]} {[%emt 00:00:09]} e4 {[%clk 00:00:19]} 42. Be5+ {[%clk
00:00:19]} {[%emt 00:00:05]} Kf7 {[%clk 00:00:21]} 43. Ra8 {[%clk 00:00:21]}
Bb6 {[%clk 00:00:23]} 44. Rb8 {[%clk 00:00:22]} {[%emt 00:00:04]} Ba5 {[%clk
00:00:25]} 45. Rb7+ {[%clk 00:00:24]} Ke6 {[%clk 00:00:27]} 46. Bxg7 {[%emt
00:00:04]} Rxc6 {[%clk 00:00:28]} 47. Bxc6 {[%clk 00:00:28]} {[%emt 00:00:04]}
Kd6 {[%clk 00:00:30]} 48. Ba4 {[%clk 00:00:28]} {[%emt 00:00:05]} e3 {[%clk
00:00:32]} 49. Kf3 {[%clk 00:00:30]} Bd2 {[%clk 00:00:34]} 50. Ke2 {[%clk
00:00:32]} Kc5 {[%clk 00:00:33]} {[%emt 00:00:05]} 51. Rf7 {[%clk 00:00:34]}
Kb4 {[%clk 00:00:35]} 52. Bd7 {[%clk 00:00:35]} {[%emt 00:00:09]} Kc5 {[%clk
00:00:37]} 53. Bxf5 {[%clk 00:00:36]} {[%emt 00:00:04]} Kd5 {[%clk 00:00:39]}
54. Bxh7 {[%clk 00:00:38]} Ke6 {[%clk 00:00:42]} 55. Rf3 {[%clk 00:00:39]} 1-0

[Event "Open Mancomunitat de la Ribera Alta (Sumacàrcer)"]
[Site "Sumacàrcer, Spain"]
[Date "2018.11.18"]
[Round "5.2"]
[White "Plaskett, H James"]
[Black "Cruz Lledo, Pablo"]
[Result "1-0"]
[TimeControl "5m+3s"]
[WhiteElo "2490"]
[BlackElo "2335"]

1. c4 {[%clk 00:05:05]} {[%emt 00:00:11]} e6 {[%clk 00:05:04]} 2. Nc3 {[%clk
00:05:05]} d5 {[%clk 00:05:06]} 3. d4 {[%clk 00:05:07]} Bb4 {[%clk 00:05:06]}
{[%emt 00:00:11]} 4. Nf3 {[%clk 00:05:08]} Ne7 {[%clk 00:05:08]} 5. e3 {[%clk
00:04:59]} {[%emt 00:00:08]} O-O {[%clk 00:05:09]} {[%emt 00:00:03]} 6. Bd3
{[%clk 00:05:00]} f5 {[%clk 00:04:41]} {[%emt 00:00:30]} 7. O-O {[%clk
00:04:55]} {[%emt 00:00:16]} c6 {[%clk 00:04:34]} {[%emt 00:00:04]} 8. Bd2
{[%clk 00:04:46]} {[%emt 00:00:15]} Ba5 {[%clk 00:04:28]} {[%emt 00:00:05]} 9.
Ne5 {[%clk 00:04:40]} {[%emt 00:00:41]} Nd7 {[%clk 00:04:28]} 10. f4 {[%clk
00:04:36]} Nf6 {[%clk 00:04:28]} 11. Qe2 {[%clk 00:04:30]} Bd7 {[%clk
00:04:30]} 12. a3 {[%clk 00:04:23]} {[%emt 00:00:04]} Be8 {[%clk 00:04:32]} 13.
b4 {[%emt 00:00:23]} Bc7 14. b5 {[%clk 00:04:20]} Ne4 {[%clk 00:04:28]} 15.
bxc6 {[%clk 00:03:58]} {[%emt 00:00:18]} bxc6 {[%clk 00:04:30]} {[%emt
00:00:07]} 16. Bxe4 {[%clk 00:03:51]} {[%emt 00:00:39]} fxe4 {[%clk 00:04:29]}
17. Na4 {[%clk 00:03:48]} {[%emt 00:00:03]} Ng6 {[%clk 00:03:34]} {[%emt
00:00:31]} 18. Nc5 {[%clk 00:03:38]} {[%emt 00:00:13]} Qe7 {[%clk 00:03:21]}
{[%emt 00:00:40]} 19. Bb4 {[%clk 00:03:38]} {[%emt 00:00:04]} a5 {[%clk
00:03:15]} 20. Nxg6 {[%clk 00:03:22]} {[%emt 00:00:05]} Bxg6 {[%emt 00:00:26]}
21. Bc3 e5 {[%clk 00:02:40]} {[%emt 00:00:13]} 22. fxe5 {[%clk 00:03:05]}
{[%emt 00:00:25]} Bxe5 {[%clk 00:02:42]} {[%emt 00:00:04]} 23. cxd5 {[%clk
00:02:08]} {[%emt 00:00:55]} cxd5 {[%clk 00:02:44]} {[%emt 00:00:08]} 24. Qb5
{[%clk 00:01:56]} {[%emt 00:00:10]} Bc7 {[%clk 00:01:29]} {[%emt 00:01:17]} 25.
Qc6 {[%clk 00:01:32]} {[%emt 00:00:26]} Qg5 {[%clk 00:01:14]} {[%emt 00:00:43]}
26. Bd2 {[%clk 00:01:03]} {[%emt 00:00:06]} Rfc8 {[%clk 00:01:11]} {[%emt
00:00:15]} 27. Qe6+ {[%clk 00:00:54]} {[%emt 00:00:14]} Kh8 28. Qh3 {[%clk
00:00:41]} {[%emt 00:00:09]} Bd6 {[%clk 00:01:01]} {[%emt 00:00:13]} 29. Ne6
{[%clk 00:00:39]} {[%emt 00:00:11]} Qe7 {[%clk 00:01:03]} 30. a4 {[%clk
00:00:34]} {[%emt 00:00:05]} Rc2 {[%clk 00:01:01]} {[%emt 00:00:08]} 31. Rad1
{[%clk 00:00:31]} {[%emt 00:00:04]} Bb4 {[%clk 00:00:51]} {[%emt 00:00:12]} 32.
Nf4 {[%clk 00:00:31]} {[%emt 00:00:03]} Bf7 {[%clk 00:00:49]} {[%emt 00:00:04]}
33. Bc1 {[%clk 00:00:32]} {[%emt 00:00:04]} Rac8 {[%clk 00:00:47]} {[%emt
00:00:04]} 34. Qf5 {[%clk 00:00:28]} {[%emt 00:00:06]} Rd8 {[%clk 00:00:37]}
{[%emt 00:00:13]} 35. Qg4 {[%clk 00:00:21]} {[%emt 00:00:13]} Rc6 {[%clk
00:00:34]} {[%emt 00:00:03]} 36. Bd2 {[%clk 00:00:22]} {[%emt 00:00:16]} Rc2
{[%clk 00:00:25]} {[%emt 00:00:04]} 37. Be1 {[%clk 00:00:24]} Rc6 {[%clk
00:00:06]} {[%emt 00:00:21]} 38. Bh4 {[%clk 00:00:26]} Rf6 {[%clk 00:00:07]} 39.
Bxf6 {[%clk 00:00:27]} {[%emt 00:00:12]} gxf6 40. Qf5 {[%clk 00:00:28]} Rg8
{[%clk 00:00:09]} 41. Kh1 {[%clk 00:00:28]} Rg5 {[%clk 00:00:06]} {[%emt
00:00:05]} 42. Qc8+ {[%clk 00:00:30]} Kg7 {[%clk 00:00:07]} {[%emt 00:00:04]}
43. Rc1 {[%clk 00:00:31]} Bd6 {[%clk 00:00:09]} {[%emt 00:00:06]} 44. Qh3
{[%clk 00:00:29]} Kg8 {[%clk 00:00:06]} {[%emt 00:00:09]} 45. Rc8+ {[%clk
00:00:30]} Kg7 {[%clk 00:00:08]} 46. Rc2 {[%clk 00:00:32]} Kg8 {[%clk
00:00:11]} 47. Rcf2 {[%clk 00:00:34]} Qc7 {[%clk 00:00:08]} {[%emt 00:00:08]}
48. Ne2 {[%clk 00:00:34]} Be7 {[%clk 00:00:10]} {[%emt 00:00:04]} 49. Ng3
{[%clk 00:00:36]} Be8 {[%clk 00:00:06]} {[%emt 00:00:13]} 50. Nf5 {[%clk
00:00:37]} Bf8 {[%clk 00:00:06]} 51. Qh4 {[%clk 00:00:37]} Qf7 {[%clk
00:00:04]} {[%emt 00:00:07]} 52. Nh6+ Bxh6 {[%clk 00:00:06]} 53. Qxh6 {[%clk
00:00:39]} {[%emt 00:00:03]} Rg6 {[%clk 00:00:07]} 54. Qh4 {[%clk 00:00:40]}
{[%emt 00:00:03]} Bxa4 {[%clk 00:00:09]} 55. Rxf6 {[%clk 00:00:39]} {[%emt
00:00:11]} Rxf6 {[%clk 00:00:07]} 56. Qxf6 {[%clk 00:00:38]} {[%emt 00:00:03]}
Qxf6 {[%clk 00:00:04]} {[%emt 00:00:11]} 57. Rxf6 {[%clk 00:00:39]} Bb3 {[%clk
00:00:06]} 58. Ra6 {[%clk 00:00:41]} a4 {[%clk 00:00:09]} 59. Ra7 {[%clk
00:00:44]} h5 {[%clk 00:00:05]} {[%emt 00:00:11]} 60. g3 {[%clk 00:00:44]} Kf8
{[%clk 00:00:07]} 61. Kg2 {[%clk 00:00:46]} Ke8 {[%clk 00:00:09]} 62. Kf2
{[%clk 00:00:49]} Kd8 {[%clk 00:00:11]} {[%emt 00:00:15]} 63. Ke1 {[%clk
00:00:51]} Kc8 {[%clk 00:00:13]} 64. Kd2 {[%clk 00:00:53]} Kb8 {[%clk
00:00:11]} {[%emt 00:00:03]} 65. Ra5 {[%clk 00:00:54]} Kc7 {[%clk 00:00:11]} 66.
Rb5 {[%clk 00:00:49]} {[%emt 00:00:03]} Kc6 {[%clk 00:00:13]} {[%emt 00:00:07]}
67. Rb4 {[%clk 00:00:47]} Kc7 {[%clk 00:00:13]} {[%emt 00:00:08]} 68. h3 {[%clk
00:00:48]} Kc6 {[%clk 00:00:11]} {[%emt 00:00:03]} 69. Rxb3 {[%clk 00:00:46]}
{[%emt 00:00:07]} axb3 {[%clk 00:00:13]} {[%emt 00:00:04]} 70. Kc3 {[%clk
00:00:49]} Kb6 {[%clk 00:00:08]} {[%emt 00:00:04]} 71. Kxb3 {[%clk 00:00:49]}
{[%emt 00:00:04]} Kb5 {[%clk 00:00:11]} 72. g4 {[%clk 00:00:48]} {[%emt
00:00:03]} hxg4 {[%clk 00:00:13]} 73. hxg4 {[%clk 00:00:49]} Kc6 {[%clk
00:00:15]} {[%emt 00:00:04]} 74. Kb4 {[%clk 00:00:51]} Kb6 {[%clk 00:00:17]} 75.
g5 {[%clk 00:00:52]} {[%emt 00:00:03]} Kc6 {[%clk 00:00:19]} 76. g6 {[%emt
00:00:07]} 1-0

[Event "Open Mancomunitat de la Ribera Alta (Sumacàrcer)"]
[Site "Sumacàrcer, Spain"]
[Date "2018.11.18"]
[Round "5.3"]
[White "Campos Gambuti, Luis Maria"]
[Black "Toledano Llinares, Juan A."]
[Result "0-1"]
[TimeControl "5m+3s"]
[WhiteElo "2432"]
[BlackElo "2258"]

1. d4 {[%clk 00:05:05]} d6 {[%clk 00:05:02]} {[%emt 00:00:27]} 2. Nf3 {[%clk
00:05:06]} Nf6 {[%clk 00:05:02]} 3. g3 {[%clk 00:05:06]} Nbd7 {[%clk 00:05:00]}
4. Bg2 {[%clk 00:05:06]} c6 {[%clk 00:05:00]} 5. O-O {[%clk 00:05:05]} {[%emt
00:00:14]} e5 {[%clk 00:04:58]} 6. dxe5 {[%clk 00:04:45]} {[%emt 00:00:23]}
dxe5 {[%clk 00:05:00]} 7. b3 {[%clk 00:04:45]} {[%emt 00:00:03]} Qc7 {[%clk
00:04:54]} {[%emt 00:00:06]} 8. Bb2 {[%clk 00:04:46]} {[%emt 00:00:03]} Bc5
{[%clk 00:04:48]} {[%emt 00:00:12]} 9. Nh4 {[%clk 00:04:39]} {[%emt 00:00:07]}
O-O {[%clk 00:04:35]} {[%emt 00:00:21]} 10. Nd2 {[%clk 00:04:36]} {[%emt
00:00:03]} Rd8 {[%clk 00:04:36]} 11. e4 {[%clk 00:04:27]} {[%emt 00:00:09]} Nf8
{[%clk 00:04:35]} {[%emt 00:00:12]} 12. Qe2 {[%clk 00:04:25]} {[%emt 00:00:20]}
Bg4 {[%clk 00:04:18]} 13. Nhf3 {[%clk 00:04:21]} {[%emt 00:00:04]} Ne6 {[%clk
00:04:11]} {[%emt 00:00:08]} 14. h3 {[%clk 00:04:11]} {[%emt 00:00:13]} Nd4
{[%clk 00:03:32]} {[%emt 00:00:44]} 15. Bxd4 {[%clk 00:04:08]} {[%emt
00:00:06]} Bxf3 {[%clk 00:03:33]} {[%emt 00:00:04]} 16. Nxf3 {[%clk 00:04:09]}
{[%emt 00:00:04]} Bxd4 {[%clk 00:03:34]} 17. Nxd4 {[%clk 00:04:10]} {[%emt
00:00:12]} Rxd4 {[%clk 00:03:36]} 18. c3 {[%clk 00:03:57]} {[%emt 00:00:08]}
Rd6 {[%clk 00:03:37]} {[%emt 00:00:03]} 19. Rfd1 {[%clk 00:03:32]} {[%emt
00:00:22]} Rad8 {[%clk 00:03:39]} {[%emt 00:00:31]} 20. Kf1 {[%clk 00:03:14]}
{[%emt 00:00:14]} Qd7 {[%clk 00:02:59]} {[%emt 00:00:20]} 21. Ke1 {[%clk
00:03:11]} {[%emt 00:00:26]} Rd3 {[%clk 00:02:56]} {[%emt 00:00:06]} 22. Rxd3
{[%clk 00:02:53]} {[%emt 00:00:08]} Qxd3 {[%clk 00:02:58]} 23. Qxd3 {[%clk
00:02:54]} {[%emt 00:00:04]} Rxd3 {[%clk 00:03:00]} 24. Rc1 {[%clk 00:02:56]}
Kf8 {[%clk 00:03:00]} 25. Ke2 {[%clk 00:02:58]} {[%emt 00:00:17]} Rd6 {[%clk
00:02:57]} {[%emt 00:00:03]} 26. Ke3 {[%clk 00:02:56]} Ke7 {[%clk 00:02:57]} 27.
b4 {[%clk 00:02:50]} {[%emt 00:00:04]} Nd7 {[%clk 00:02:59]} 28. Bf1 {[%clk
00:02:47]} {[%emt 00:00:07]} a6 {[%clk 00:02:53]} {[%emt 00:00:07]} 29. a4
{[%clk 00:02:47]} {[%emt 00:00:07]} c5 {[%clk 00:02:55]} {[%emt 00:00:03]} 30.
a5 {[%clk 00:01:11]} {[%emt 00:01:33]} Kd8 {[%clk 00:01:57]} {[%emt 00:00:59]}
31. Bc4 {[%clk 00:01:11]} {[%emt 00:00:44]} f6 {[%clk 00:01:57]} 32. Bd5 {[%clk
00:01:02]} Kc7 {[%clk 00:01:58]} 33. h4 {[%clk 00:00:52]} g6 {[%clk 00:01:51]}
{[%emt 00:00:03]} 34. h5 {[%clk 00:00:52]} {[%emt 00:00:18]} f5 {[%clk
00:01:50]} {[%emt 00:00:04]} 35. hxg6 {[%clk 00:00:49]} hxg6 {[%clk 00:01:50]}
36. Rb1 {[%clk 00:00:31]} {[%emt 00:00:15]} cxb4 {[%clk 00:01:44]} {[%emt
00:00:16]} 37. cxb4 {[%clk 00:00:31]} Nf6 {[%clk 00:01:45]} 38. Rc1+ {[%clk
00:00:30]} {[%emt 00:00:03]} Kb8 {[%clk 00:01:47]} 39. Bf7 {[%clk 00:00:31]}
{[%emt 00:00:03]} Nxe4 {[%clk 00:01:48]} {[%emt 00:00:07]} 40. Rh1 {[%clk
00:00:15]} {[%emt 00:00:10]} Ng5 {[%clk 00:01:49]} {[%emt 00:00:19]} 41. Bc4
{[%clk 00:00:17]} Ne6 {[%clk 00:01:43]} 42. Rh8+ {[%clk 00:00:18]} Ka7 {[%clk
00:01:45]} {[%emt 00:00:12]} 43. Rh6 {[%clk 00:00:15]} Nd4 {[%clk 00:01:46]} 44.
Bf7 {[%clk 00:00:16]} f4+ {[%clk 00:01:44]} 45. gxf4 {[%clk 00:00:16]} {[%emt
00:00:10]} Nf5+ {[%clk 00:01:47]} 0-1

[Event "Open Mancomunitat de la Ribera Alta (Sumacàrcer)"]
[Site "Sumacàrcer, Spain"]
[Date "2018.11.18"]
[Round "5.4"]
[White "Pena Riasco, Alexander"]
[Black "Kovacevic, Slobodan"]
[Result "1-0"]
[TimeControl "5m+3s"]
[WhiteElo "2039"]
[BlackElo "2455"]

1. d4 {[%clk 00:05:06]} Nf6 {[%clk 00:05:05]} {[%emt 00:00:23]} 2. Bf4 {[%clk
00:05:08]} e6 {[%clk 00:05:07]} 3. e3 {[%clk 00:05:10]} c5 {[%clk 00:05:08]} 4.
c3 {[%clk 00:05:10]} Be7 {[%clk 00:05:08]} 5. Nd2 {[%clk 00:05:08]} O-O {[%clk
00:05:09]} {[%emt 00:00:07]} 6. Bd3 {[%clk 00:05:08]} b6 {[%clk 00:05:11]} 7.
h3 {[%clk 00:05:08]} Bb7 {[%clk 00:05:13]} 8. Ngf3 {[%clk 00:05:10]} {[%emt
00:00:07]} a6 {[%clk 00:05:15]} 9. O-O {[%clk 00:05:10]} d6 {[%clk 00:05:17]}
{[%emt 00:00:03]} 10. Qe2 {[%clk 00:04:57]} {[%emt 00:00:13]} Nbd7 {[%clk
00:05:17]} {[%emt 00:00:04]} 11. Bh2 {[%clk 00:04:53]} {[%emt 00:00:05]} Qc7
{[%clk 00:05:19]} {[%emt 00:00:04]} 12. Rad1 {[%clk 00:04:40]} {[%emt
00:00:10]} b5 {[%clk 00:05:21]} {[%emt 00:00:07]} 13. Rfe1 {[%clk 00:04:38]}
Rfe8 {[%clk 00:05:19]} {[%emt 00:00:34]} 14. e4 {[%clk 00:04:14]} {[%emt
00:00:04]} c4 {[%clk 00:05:14]} {[%emt 00:00:03]} 15. Bb1 {[%clk 00:04:14]}
{[%emt 00:00:03]} e5 {[%clk 00:05:16]} {[%emt 00:00:03]} 16. Nf1 {[%clk
00:03:51]} {[%emt 00:00:21]} Bf8 {[%clk 00:05:18]} {[%emt 00:00:36]} 17. d5
{[%clk 00:03:51]} g6 {[%clk 00:05:18]} 18. Ng3 {[%clk 00:02:59]} {[%emt
00:00:28]} Nc5 {[%clk 00:05:10]} {[%emt 00:00:39]} 19. Bc2 {[%clk 00:02:49]}
{[%emt 00:00:04]} Bh6 {[%clk 00:05:09]} 20. Kh1 {[%clk 00:02:39]} {[%emt
00:00:03]} a5 {[%clk 00:05:05]} {[%emt 00:00:12]} 21. Nf1 {[%clk 00:02:26]}
{[%emt 00:00:08]} Ba6 {[%clk 00:05:07]} {[%emt 00:00:03]} 22. a3 {[%clk
00:02:18]} {[%emt 00:00:08]} Reb8 {[%clk 00:04:58]} {[%emt 00:00:13]} 23. Nxe5
{[%clk 00:02:04]} {[%emt 00:00:15]} dxe5 {[%emt 00:00:09]} 24. d6 Qd8 {[%clk
00:04:49]} {[%emt 00:00:07]} 25. Bxe5 {[%clk 00:02:08]} {[%emt 00:00:12]} Nfd7
{[%clk 00:04:51]} 26. Bd4 {[%clk 00:01:59]} {[%emt 00:00:06]} Ne6 {[%clk
00:04:52]} {[%emt 00:00:03]} 27. e5 {[%clk 00:01:51]} {[%emt 00:00:07]} Bb7
{[%clk 00:04:53]} {[%emt 00:00:20]} 28. Be4 {[%clk 00:01:37]} {[%emt 00:00:15]}
Qh4 {[%clk 00:04:34]} {[%emt 00:00:08]} 29. Bxb7 {[%clk 00:01:28]} {[%emt
00:00:13]} Rxb7 {[%clk 00:04:36]} {[%emt 00:00:03]} 30. Ng3 {[%clk 00:01:25]}
{[%emt 00:00:07]} Re8 {[%clk 00:04:25]} {[%emt 00:00:20]} 31. Qf3 {[%clk
00:01:20]} {[%emt 00:00:03]} Rbb8 {[%clk 00:04:19]} {[%emt 00:00:05]} 32. Re4
{[%clk 00:01:13]} {[%emt 00:00:07]} Qd8 {[%clk 00:04:19]} {[%emt 00:00:10]} 33.
Qg4 {[%clk 00:00:36]} {[%emt 00:00:43]} Bg7 {[%clk 00:03:57]} {[%emt 00:00:14]}
34. f4 {[%clk 00:00:34]} {[%emt 00:00:08]} Ndc5 {[%clk 00:03:36]} {[%emt
00:00:21]} 35. Re2 {[%clk 00:00:29]} {[%emt 00:00:23]} Nd3 {[%clk 00:03:31]} 36.
f5 {[%clk 00:00:26]} {[%emt 00:00:20]} Nef4 {[%clk 00:03:27]} {[%emt 00:00:04]}
37. f6 {[%clk 00:00:09]} {[%emt 00:00:05]} Nxe2 {[%clk 00:03:20]} {[%emt
00:00:11]} 38. Qxe2 {[%clk 00:00:06]} {[%emt 00:00:09]} Bxf6 {[%clk 00:03:19]}
{[%emt 00:00:04]} 39. Qg4 {[%clk 00:00:04]} {[%emt 00:00:04]} Bxe5 {[%clk
00:03:17]} {[%emt 00:00:03]} 40. Ne4 {[%emt 00:00:09]} f5 {[%clk 00:03:11]}
{[%emt 00:00:07]} 41. Qf3 {[%clk 00:00:04]} {[%emt 00:00:07]} Bxd4 {[%clk
00:03:06]} 42. cxd4 {[%emt 00:00:15]} Ra8 {[%emt 00:00:03]} 1-0